[Event "HUN-ch U8-U18 2019"]
[Site "Balatonlelle"]
[Date "2019.06.26"]
[Round "7.11"]
[White "Farkas, Otto Jr."]
[Black "Daroczi, Donat"]
[Result "1-0"]
[ECO "C11"]
[WhiteElo "1859"]
[BlackElo "2050"]
[Annotator "NA RC"]
[PlyCount "137"]
[EventDate "2019.06.21"]
[EventType "swiss"]
[EventCountry "HUN"]
[SourceTitle "playchess.com"]
[Source "ChessBase"]
[SourceQuality "1"]
[TimeControl "40/5400+30:1800+30"]

1. e4 {[%emt 0:00:01]} e6 {[%emt 0:00:07]} 2. d4 {[%emt 0:00:11]} d5 {[%emt 0:00:04]} 3. Nc3 {[%emt 0:00:07]} Nf6 {[%emt 0:00:06]} 4. Bg5 {[%emt 0:00:06]} dxe4 {[%emt 0:00:06]} 5. Nxe4 {[%emt 0:00:08]} Be7 {[%emt 0:00:04]} 6. Bxf6 {[%emt 0:00:17]} gxf6 {[%emt 0:00:06]} 7. Nf3 {[%emt 0:01:16]} f5 {[%emt 0:00:04]} 8. Ned2 {[%emt 0:05:28]} c5 {[%emt 0:00:41]} 9. Bb5+ {[%emt 0:01:43]} Bd7 {[%emt 0:03:08]} 10. Bxd7+ {[%emt 0:00:56]} Qxd7 {[%emt 0:01:21]} 11. dxc5 {[%emt 0:02:50]} Bxc5 {[%emt 0:00:44]} 12. Qe2 {[%emt 0:00:42]} Nc6 {[%emt 0:02:39]} 13. O-O-O {[%emt 0:06:16]} O-O-O {[%emt 0:00:23]} 14. Nc4 {[%emt 0:09:20]} Qc7 {[%emt 0:02:55]} 15. Kb1 {[%emt 0:01:20]} Ne7 {[%emt 0:11:24]} 16. Nce5 {[%emt 0:10:53]} Nd5 {[%emt 0:00:20]} 17. Nd3 {[%emt 0:00:31]} Qb6 {[%emt 0:21:19]} 18. Ka1 {[%emt 0:15:25]} Bd6 {[%emt 0:19:46]} 19. Ng5 {[%emt 0:10:22]} Rd7 {[%emt 0:00:51]} 20. Nxf7 {[%emt 0:07:28]} Re8 {[%emt 0:07:40]} 21. Nxd6+ {[%emt 0:00:24]} Qxd6 {[%emt 0:00:05]} 22. c4 {[%emt 0:03:50]} Nf4 {[%emt 0:01:28]} 23. Nxf4 {[%emt 0:00:22]} Qxf4 {[%emt 0:00:01]} 24. Rxd7 {[%emt 0:00:19]} Kxd7 {[%emt 0:00:02]} 25. Rd1+ {[%emt 0:00:13]} Ke7 {[%emt 0:02:18]} 26. g3 {[%emt 0:01:59]} Qc7 {[%emt 0:04:28]} 27. Qh5 {[%emt 0:02:11]} Kf8 {[%emt 0:00:35]} 28. g4 {[%emt 0:02:47]} Qg7 {[%emt 0:16:10]} 29. gxf5 {[%emt 0:04:52]} exf5 {[%emt 0:00:20]} 30. Qxf5+ {[%emt 0:00:29]} Kg8 {[%emt 0:00:01]} 31. Qd5+ {[%emt 0:00:55]} Kh8 {[%emt 0:00:05]} 32. a3 {[%emt 0:00:29]} h6 {[%emt 0:01:16]} 33. Qd4 {[%emt 0:04:06]} Re7 {[%emt 0:01:33]} 34. Qd8+ {[%emt 0:02:05]} Kh7 {[%emt 0:00:07]} 35. Qd3+ {[%emt 0:00:59]} Kh8 {[%emt 0:03:27]} 36. Ka2 {[%emt 0:01:33]} Rf7 {[%emt 0:00:44]} 37. Qe3 {[%emt 0:01:34]} b6 {[%emt 0:01:09]} 38. Rd8+ {[%emt 0:00:50]} Rf8 {[%emt 0:00:11]} 39. Rd6 {[%emt 0:00:38]} Rf6 {[%emt 0:01:04]} 40. Qe8+ {[%emt 0:00:00]} Rf8 {[%emt 0:00:00]} 41. Qe6 {[%emt 0:02:10]} Rxf2 {[%emt 0:04:21]} 42. Qxh6+ {[%emt 0:00:55]} Qxh6 {[%emt 0:00:12]} 43. Rxh6+ {[%emt 0:00:07]} Kg7 {[%emt 0:00:01]} 44. Rh4 {[%emt 0:00:33]} Kf6 {[%emt 0:00:12]} 45. Rh7 {[%emt 0:00:29]} a5 {[%emt 0:01:42]} 46. Rh6+ {[%emt 0:00:14]} Ke5 {[%emt 0:00:16]} 47. Rxb6 {[%emt 0:00:29]} Kd4 {[%emt 0:00:03]} 48. h4 {[%emt 0:02:13]} Kxc4 {[%emt 0:00:17]} 49. h5 {[%emt 0:00:50]} Rh2 {[%emt 0:00:21]} 50. Rh6 {[%emt 0:00:43]} a4 {[%emt 0:01:17]} 51. Rh8 {[%emt 0:00:29]} Kb5 {[%emt 0:02:56]} 52. h6 {[%emt 0:00:56]} Kb6 {[%emt 0:00:37]} 53. Rb8+ {[%emt 0:00:51]} Ka6 {[%emt 0:01:02]} 54. Rh8 {[%emt 0:01:51]} Kb7 {[%emt 0:00:15]} 55. h7 {[%emt 0:00:04]} Rh1 {[%emt 0:00:29]} 56. Rf8 {[%emt 0:00:42]} Rxh7 {[%emt 0:00:09]} 57. Rf4 {[%emt 0:00:06]} Rh3 {[%emt 0:00:26]} 58. Rxa4 {[%emt 0:00:11]} Kb6 {[%emt 0:00:08]} 59. Rg4 {[%emt 0:00:51]} Kb5 {[%emt 0:00:17]} 60. a4+ {[%emt 0:00:34]} Ka6 {[%emt 0:01:35]} 61. b3 {[%emt 0:00:48]} Rh2+ {[%emt 0:00:46]} 62. Ka3 {[%emt 0:00:07]} Rh3 {[%emt 0:00:02]} 63. Kb4 {[%emt 0:00:11]} Rh6 {[%emt 0:00:19]} 64. a5 {[%emt 0:00:40]} Rh5 {[%emt 0:01:28]} 65. Rg6+ {[%emt 0:00:16]} Ka7 {[%emt 0:00:11]} 66. Ka4 {[%emt 0:00:15]} Kb7 {[%emt 0:00:57]} 67. b4 {[%emt 0:01:08]} Ka7 {[%emt 0:00:04]} 68. Rg7+ {[%emt 0:01:32]} Ka6 {[%emt 0:00:43]} 69. b5+ {[%emt 0:00:18]} 1-0

[Event "HUN-ch U8-U18 2019"]
[Site "Balatonlelle"]
[Date "2019.06.26"]
[Round "7.11"]
[White "Varga, Boldizsar"]
[Black "Kovacsy, Barnabas"]
[Result "0-1"]
[ECO "D85"]
[WhiteElo "1804"]
[BlackElo "2136"]
[Annotator "NA RC"]
[PlyCount "62"]
[EventDate "2019.06.21"]
[EventType "swiss"]
[EventCountry "HUN"]
[SourceTitle "playchess.com"]
[Source "ChessBase"]
[SourceQuality "1"]
[TimeControl "40/5400+30:1800+30"]

1. d4 {[%emt 0:00:08]} Nf6 {[%emt 0:00:07]} 2. c4 {[%emt 0:00:09]} g6 {[%emt 0:00:08]} 3. Nc3 {[%emt 0:00:11]} d5 {[%emt 0:00:04]} 4. cxd5 {[%emt 0:00:09]} Nxd5 {[%emt 0:00:02]} 5. e4 {[%emt 0:00:17]} Nxc3 {[%emt 0:00:04]} 6. bxc3 {[%emt 0:00:02]} Bg7 {[%emt 0:00:08]} 7. Nf3 {[%emt 0:00:16]} c5 {[%emt 0:00:04]} 8. Be3 {[%emt 0:00:20]} Bg4 {[%emt 0:00:06]} 9. Be2 {[%emt 0:01:21]} Qa5 {[%emt 0:05:49]} 10. Qd2 {[%emt 0:01:09]} O-O {[%emt 0:04:13]} 11. Rb1 {[%emt 0:13:53]} Nd7 {[%emt 0:16:00]} 12. Rb5 {[%emt 0:29:35]} Qa4 {[%emt 0:04:57]} 13. O-O {[%emt 0:00:43]} Bxf3 {[%emt 0:02:13]} 14. gxf3 {[%emt 0:00:01]} b6 {[%emt 0:02:56]} 15. dxc5 {[%emt 0:02:12]} Nxc5 {[%emt 0:00:16]} 16. Bxc5 {[%emt 0:00:49]} bxc5 {[%emt 0:00:07]} 17. Rxc5 {[%emt 0:00:18]} Qa3 {[%emt 0:02:53]} 18. Rb5 {[%emt 0:05:49]} Bxc3 {[%emt 0:06:33]} 19. Qc2 {[%emt 0:00:45]} Bg7 {[%emt 0:00:49]} 20. Rb3 {[%emt 0:10:46]} Qd6 {[%emt 0:02:50]} 21. Rd1 {[%emt 0:00:10]} Qf4 {[%emt 0:00:52]} 22. Qd2 {[%emt 0:00:35]} Qh4 {[%emt 0:00:34]} 23. Rb5 {[%emt 0:06:21]} Bh6 {[%emt 0:01:17]} 24. Qd7 {[%emt 0:01:25]} e6 {[%emt 0:01:19]} 25. Kg2 {[%emt 0:02:06]} Bf4 {[%emt 0:03:50]} 26. h3 {[%emt 0:00:15]} Rad8 {[%emt 0:05:01]} 27. Qb7 {[%emt 0:01:12]} Rxd1 {[%emt 0:00:13]} 28. Bxd1 {[%emt 0:00:01]} Rd8 {[%emt 0:00:21]} 29. Be2 {[%emt 0:00:39]} Rd2 {[%emt 0:02:02]} 30. Rb2 {[%emt 0:00:01]} Qg5+ {[%emt 0:00:24]} 31. Kh1 {[%emt 0:00:12]} Be5 {[%emt 0:00:42]} 0-1

[Event "HUN-ch U8-U18 2019"]
[Site "Balatonlelle"]
[Date "2019.06.26"]
[Round "7.13"]
[White "Pervai, Laszlo"]
[Black "Szalay-Ocsak, Bank"]
[Result "1-0"]
[ECO "B76"]
[WhiteElo "2033"]
[BlackElo "1826"]
[Annotator "NA RC"]
[PlyCount "53"]
[EventDate "2019.06.21"]
[EventType "swiss"]
[EventCountry "HUN"]
[SourceTitle "playchess.com"]
[Source "ChessBase"]
[SourceQuality "1"]
[TimeControl "40/5400+30:1800+30"]

1. e4 {[%emt 0:00:03]} g6 {[%emt 0:00:04]} 2. d4 {[%emt 0:00:39]} Bg7 {[%emt 0:00:05]} 3. Be3 {[%emt 0:01:04]} c5 {[%emt 0:02:21]} 4. Nf3 {[%emt 0:01:48]} Nc6 {[%emt 0:04:19]} 5. Nc3 {[%emt 0:05:03]} cxd4 {[%emt 0:03:49]} 6. Nxd4 {[%emt 0:00:23]} d6 {[%emt 0:01:10]} 7. Qd2 {[%emt 0:01:20]} Nf6 {[%emt 0:02:21]} 8. f3 {[%emt 0:00:50]} O-O {[%emt 0:00:57]} 9. O-O-O {[%emt 0:01:15]} d5 {[%emt 0:00:57]} 10. Nxc6 {[%emt 0:07:21]} bxc6 {[%emt 0:02:05]} 11. g4 {[%emt 0:03:53]} Qa5 {[%emt 0:10:32]} 12. exd5 {[%emt 0:03:17]} Rb8 {[%emt 0:05:51]} 13. Bd4 {[%emt 0:07:33]} Rd8 {[%emt 0:30:23]} 14. Bc4 {[%emt 0:03:37]} Ba6 {[%emt 0:11:12]} 15. Bb3 {[%emt 0:05:47]} c5 {[%emt 0:04:53]} 16. Bxf6 {[%emt 0:02:04]} Bxf6 {[%emt 0:00:22]} 17. Ne4 {[%emt 0:01:26]} Qb5 {[%emt 0:02:54]} 18. Nxf6+ {[%emt 0:01:07]} exf6 {[%emt 0:00:04]} 19. c4 {[%emt 0:01:19]} Qb4 {[%emt 0:01:10]} 20. Qc3 {[%emt 0:09:59]} Re8 {[%emt 0:05:46]} 21. Rhe1 {[%emt 0:01:23]} Qb6 {[%emt 0:00:21]} 22. Rxe8+ {[%emt 0:05:59]} Rxe8 {[%emt 0:00:11]} 23. d6 {[%emt 0:00:32]} Rd8 {[%emt 0:01:15]} 24. Qxf6 {[%emt 0:01:11]} Bb7 {[%emt 0:01:08]} 25. h4 {[%emt 0:06:08]} Bc6 {[%emt 0:01:45]} 26. h5 {[%emt 0:01:36]} Rd7 {[%emt 0:00:40]} 27. h6 {[%emt 0:00:11]} 1-0

[Event "HUN-ch U8-U18 2019"]
[Site "Balatonlelle"]
[Date "2019.06.26"]
[Round "7.14"]
[White "Petervari, Szabolcs"]
[Black "Bilku, Andras"]
[Result "1/2-1/2"]
[ECO "A01"]
[WhiteElo "1816"]
[BlackElo "1907"]
[Annotator "NA RC"]
[PlyCount "131"]
[EventDate "2019.06.21"]
[EventType "swiss"]
[EventCountry "HUN"]
[SourceTitle "playchess.com"]
[Source "ChessBase"]
[SourceQuality "1"]
[TimeControl "40/5400+30:1800+30"]

1. b3 {[%emt 0:00:02]} d5 {[%emt 0:00:03]} 2. Bb2 {[%emt 0:00:06]} Bg4 {[%emt 0:00:03]} 3. Nf3 {[%emt 0:00:18]} Nd7 {[%emt 0:00:17]} 4. e3 {[%emt 0:00:09]} e6 {[%emt 0:00:18]} 5. Be2 {[%emt 0:00:09]} Ngf6 {[%emt 0:00:05]} 6. d4 {[%emt 0:00:18]} Bd6 {[%emt 0:00:23]} 7. c4 {[%emt 0:00:34]} c6 {[%emt 0:00:05]} 8. O-O {[%emt 0:00:41]} O-O {[%emt 0:00:04]} 9. Ne5 {[%emt 0:02:13]} Bxe2 {[%emt 0:01:54]} 10. Qxe2 {[%emt 0:00:02]} Qc7 {[%emt 0:00:20]} 11. f4 {[%emt 0:00:53]} Ne4 {[%emt 0:00:15]} 12. Nd2 {[%emt 0:08:12]} Nxd2 {[%emt 0:01:21]} 13. Qxd2 {[%emt 0:00:17]} Nf6 {[%emt 0:00:08]} 14. Rf3 {[%emt 0:04:23]} Ne4 {[%emt 0:00:20]} 15. Qe2 {[%emt 0:00:25]} Bxe5 {[%emt 0:03:16]} 16. fxe5 {[%emt 0:00:02]} f5 {[%emt 0:00:50]} 17. Rh3 {[%emt 0:13:57]} g6 {[%emt 0:00:17]} 18. Ba3 {[%emt 0:12:31]} Rf7 {[%emt 0:00:06]} 19. Bb4 {[%emt 0:01:01]} Qb6 {[%emt 0:00:44]} 20. Be1 {[%emt 0:04:33]} Raf8 {[%emt 0:00:31]} 21. c5 {[%emt 0:06:05]} Qd8 {[%emt 0:00:59]} 22. Rf3 {[%emt 0:03:47]} Qg5 {[%emt 0:00:34]} 23. Bd2 {[%emt 0:03:50]} Qh5 {[%emt 0:00:21]} 24. Qd3 {[%emt 0:02:34]} g5 {[%emt 0:00:50]} 25. Raf1 {[%emt 0:00:50]} g4 {[%emt 0:05:06]} 26. Rf4 {[%emt 0:00:08]} g3 {[%emt 0:02:12]} 27. h3 {[%emt 0:10:13]} Nf2 {[%emt 0:01:13]} 28. R4xf2 {[%emt 0:00:01]} gxf2+ {[%emt 0:00:08]} 29. Rxf2 {[%emt 0:00:02]} Rg7 {[%emt 0:00:09]} 30. Kh1 {[%emt 0:01:08]} Rff7 {[%emt 0:00:29]} 31. Qf1 {[%emt 0:00:59]} Rg3 {[%emt 0:00:21]} 32. Re2 {[%emt 0:01:26]} Rfg7 {[%emt 0:00:35]} 33. Be1 {[%emt 0:01:45]} R3g6 {[%emt 0:00:08]} 34. b4 {[%emt 0:00:39]} a6 {[%emt 0:01:03]} 35. a4 {[%emt 0:01:32]} Qg5 {[%emt 0:01:04]} 36. a5 {[%emt 0:01:26]} Rf7 {[%emt 0:00:13]} 37. Qf4 {[%emt 0:02:55]} Qh5 {[%emt 0:00:42]} 38. Rd2 {[%emt 0:02:09]} Rfg7 {[%emt 0:00:20]} 39. Qf1 {[%emt 0:01:34]} Rf7 {[%emt 0:02:02]} 40. Qf4 {[%emt 0:00:00]} Rg4 {[%emt 0:00:00]} 41. Qf3 {[%emt 0:00:35]} Qh6 {[%emt 0:04:56]} 42. Bg3 {[%emt 0:06:41]} Rfg7 {[%emt 0:02:23]} 43. Bf4 {[%emt 0:00:27]} Qh4 {[%emt 0:01:08]} 44. Rf2 {[%emt 0:00:55]} R4g6 {[%emt 0:07:21]} 45. Kh2 {[%emt 0:02:20]} Qe7 {[%emt 0:02:06]} 46. Qe2 {[%emt 0:00:30]} Kh8 {[%emt 0:02:42]} 47. Qe1 {[%emt 0:01:35]} Qh4 {[%emt 0:00:19]} 48. Qe2 {[%emt 0:00:34]} Rg4 {[%emt 0:03:50]} 49. Qf3 {[%emt 0:00:48]} R4g6 {[%emt 0:05:10]} 50. Qe2 {[%emt 0:01:05]} Kg8 {[%emt 0:01:01]} 51. Qf3 {[%emt 0:00:41]} Kf7 {[%emt 0:00:12]} 52. Qe2 {[%emt 0:01:54]} Ke8 {[%emt 0:00:07]} 53. Qf3 {[%emt 0:01:14]} Rg8 {[%emt 0:00:13]} 54. Qe2 {[%emt 0:00:39]} Kd7 {[%emt 0:00:06]} 55. Qf3 {[%emt 0:00:54]} Qe7 {[%emt 0:00:10]} 56. Qe2 {[%emt 0:00:05]} Qg7 {[%emt 0:00:05]} 57. Qf3 {[%emt 0:01:03]} Kc7 {[%emt 0:00:05]} 58. Qe2 {[%emt 0:00:13]} h5 {[%emt 0:00:42]} 59. Qf3 {[%emt 0:03:16]} h4 {[%emt 0:00:11]} 60. Kh1 {[%emt 0:00:27]} Kb8 {[%emt 0:00:55]} 61. Qe2 {[%emt 0:01:11]} Qh7 {[%emt 0:02:01]} 62. Kh2 {[%emt 0:01:03]} Rg3 {[%emt 0:00:18]} 63. Kh1 {[%emt 0:00:06]} R3g6 {[%emt 0:01:26]} 64. Kh2 {[%emt 0:01:10]} R8g7 {[%emt 0:00:08]} 65. Kh1 {[%emt 0:00:25]} Qg8 {[%emt 0:00:07]} 66. Qf3 1/2-1/2

[Event "HUN-ch U8-U18 2019"]
[Site "Balatonlelle"]
[Date "2019.06.26"]
[Round "7.16"]
[White "Miszler, Levente"]
[Black "Kovacs, Gabor Etele"]
[Result "1-0"]
[ECO "A14"]
[WhiteElo "2041"]
[BlackElo "2062"]
[Annotator "NA RC"]
[PlyCount "205"]
[EventDate "2019.06.21"]
[EventType "swiss"]
[EventCountry "HUN"]
[SourceTitle "playchess.com"]
[Source "ChessBase"]
[SourceQuality "1"]
[TimeControl "40/5400+30:1800+30"]

1. Nf3 {[%emt 0:00:03]} d5 {[%emt 0:00:14]} 2. c4 {[%emt 0:00:06]} e6 {[%emt 0:00:07]} 3. g3 {[%emt 0:00:07]} Nf6 {[%emt 0:00:16]} 4. Bg2 {[%emt 0:00:08]} Be7 {[%emt 0:00:30]} 5. O-O {[%emt 0:00:14]} O-O {[%emt 0:00:13]} 6. d4 {[%emt 0:00:17]} c6 {[%emt 0:00:19]} 7. b3 {[%emt 0:00:26]} Nbd7 {[%emt 0:00:57]} 8. Nc3 {[%emt 0:00:30]} b6 {[%emt 0:00:21]} 9. Qc2 {[%emt 0:02:35]} Ba6 {[%emt 0:03:53]} 10. Nd2 {[%emt 0:03:34]} Rc8 {[%emt 0:00:18]} 11. e4 {[%emt 0:04:13]} dxe4 {[%emt 0:23:38]} 12. Ndxe4 {[%emt 0:01:49]} Nxe4 {[%emt 0:00:12]} 13. Nxe4 {[%emt 0:00:18]} Nf6 {[%emt 0:00:29]} 14. Bb2 {[%emt 0:01:06]} Qc7 {[%emt 0:05:07] E07: Closed Catalan: Main Line (5 Nf3 0-0 6 0-0 Nbd7)} 15. Rad1 {[%emt 0:08:57]} Rfd8 {[%emt 0:02:51]} 16. Rfe1 {[%emt 0:01:40]} h6 {[%emt 0:03:33]} 17. Bc1 {[%emt 0:03:54]} (17. Qe2 Nxe4 18. Qxe4 Bf6 19. Bc1 Rd7 20. Bf4 Qd8 21. Be5 Bb7 22. Qc2 {½-½ (35) Ionov,S (2553)-Shaposhnikov,E (2494) Moscow 1999}) 17... Nxe4 $146 {[%emt 0:05:47]} ({Predecessor:} 17... Rd7 18. Bf4 Qd8 19. Nxf6+ Bxf6 20. Be5 Bb7 21. c5 Bxe5 22. dxe5 Rd4 23. Bf3 b5 24. Qc3 Rxd1 25. Rxd1 Qc7 26. Rd6 Qe7 27. Qd3 {1-0 (27) Da Costa,A-Galvez Ponziano,R CADAP email 2002}) 18. Qxe4 {[%emt 0:02:45]} Bf6 {[%emt 0:01:04]} 19. Bf4 {[%emt 0:03:23]} Qe7 {[%emt 0:02:07]} 20. d5 {[%emt 0:06:19]} cxd5 {[%emt 0:00:11]} 21. cxd5 {[%emt 0:00:06]} Qd7 {[%emt 0:04:24]} 22. Bh3 {[%emt 0:10:24]} Bb7 {[%emt 0:07:53]} 23. dxe6 {[%emt 0:06:20]} Qxd1 {[%emt 0:01:09]} 24. exf7+ {[%emt 0:00:19]} Kf8 {[%emt 0:07:13]} 25. Qe8+ {[%emt 0:04:28]} Rxe8 {[%emt 0:00:11]} 26. fxe8=Q+ {[%emt 0:00:11]} Rxe8 {[%emt 0:00:08]} 27. Rxd1 {[%emt 0:00:07]} Re2 {[%emt 0:00:36]} 28. a4 {[%emt 0:16:47]} Bf3 {[%emt 0:09:00]} 29. Bf1 {[%emt 0:06:38]} Rb2 {[%emt 0:05:07]} 30. Rd3 {[%emt 0:01:53]} Be4 {[%emt 0:00:41]} 31. Bd6+ {[%emt 0:01:35]} Kf7 {[%emt 0:00:32]} 32. Rd1 {[%emt 0:01:32]} Bc2 {[%emt 0:05:55]} 33. Bc4+ {[%emt 0:01:06]} Ke8 {[%emt 0:00:02]} 34. Re1+ {[%emt 0:02:50]} Kd7 {[%emt 0:00:04]} 35. Ba3 {[%emt 0:00:24]} Ra2 {[%emt 0:04:17]} 36. Bc1 {[%emt 0:01:43]} Ra1 {[%emt 0:02:07]} 37. Bd2 {[%emt 0:01:52]} Ra2 {[%emt 0:02:10]} 38. Bc1 {[%emt 0:02:38]} Ra1 {[%emt 0:02:23]} 39. Kf1 {[%emt 0:00:55]} Bc3 {[%emt 0:00:29]} 40. Bd2 {[%emt 0:00:00]} Rxe1+ {[%emt 0:00:00]} 41. Bxe1 {[%emt 0:01:55]} Bd4 {[%emt 0:02:17]} 42. Ke2 {[%emt 0:00:25]} Kc6 {[%emt 0:00:13]} 43. Kd2 {[%emt 0:01:33]} Bf5 {[%emt 0:00:41]} 44. Bd3 {[%emt 0:01:01]} Be6 {[%emt 0:00:23]} 45. Kc2 {[%emt 0:00:19]} a5 {[%emt 0:01:13]} 46. Bc3 {[%emt 0:05:41]} Bxf2 {[%emt 0:10:17]} 47. Bxg7 {[%emt 0:00:28]} Bg1 {[%emt 0:10:11]} 48. Bxh6 {[%emt 0:01:18]} Bxh2 {[%emt 0:01:28]} 49. Be4+ {[%emt 0:01:24]} Kc5 {[%emt 0:02:37]} 50. Bf4 {[%emt 0:03:18]} b5 {[%emt 0:01:36]} 51. Be3+ {[%emt 0:06:00]} Kb4 {[%emt 0:00:09]} 52. Bd2+ {[%emt 0:01:01]} Kc5 {[%emt 0:02:56]} 53. axb5 {[%emt 0:01:55]} Kxb5 {[%emt 0:00:15]} 54. Be1 {[%emt 0:01:49]} Bd7 {[%emt 0:03:14]} 55. Bd3+ {[%emt 0:01:01]} Kc5 {[%emt 0:00:30]} 56. Kb2 {[%emt 0:03:15]} ({Much weaker is} 56. Bxa5 Bxg3 57. Kd2 Bf4+ 58. Kc2 Be6 $11) 56... Kd4 {[%emt 0:01:04]} 57. Ba6 {[%emt 0:01:52]} Kc5 {[%emt 0:00:47]} 58. Bf1 {[%emt 0:01:54]} Kb6 {[%emt 0:00:20]} 59. Bf2+ {[%emt 0:00:18]} Kc6 {[%emt 0:00:21]} 60. Kc3 {[%emt 0:01:40]} Be6 {[%emt 0:00:31]} 61. Bc4 {[%emt 0:00:58]} Bf5 {[%emt 0:00:31]} 62. Kd4 {[%emt 0:00:34]} Bc2 {[%emt 0:00:39]} 63. Kc3 {[%emt 0:00:47]} ({White should play} 63. g4 $16) 63... Bf5 {[%emt 0:00:02]} 64. Bf7 {[%emt 0:02:18]} Bg4 {[%emt 0:00:42]} 65. Be8+ {[%emt 0:01:02]} Kd5 {[%emt 0:00:05]} 66. Kd3 {[%emt 0:00:27]} Bf5+ {[%emt 0:00:11]} 67. Ke3 {[%emt 0:01:37]} Bc2 $18 {[%emt 0:00:05]} (67... Be6 $14) 68. Ba4 {[%emt 0:00:27]} Bd1 {[%emt 0:00:20]} 69. Kf4 {[%emt 0:01:03]} Bc2 {[%emt 0:03:18]} 70. Kg4 {[%emt 0:01:46]} Ke4 {[%emt 0:00:32]} 71. Kh3 {[%emt 0:00:19]} Kf3 {[%emt 0:00:16]} 72. Be1 {[%emt 0:01:07]} Bg1 {[%emt 0:01:03]} 73. Bxa5 {[%emt 0:00:17]} Bf5+ {[%emt 0:00:38]} 74. Kh4 {[%emt 0:00:14]} Bd4 {[%emt 0:00:18]} 75. Bc6+ {[%emt 0:00:21]} Kf2 {[%emt 0:00:11]} 76. g4 {[%emt 0:00:30]} Be6 {[%emt 0:00:32]} 77. b4 {[%emt 0:00:30]} Bxg4 {[%emt 0:00:59]} 78. Kxg4 {[%emt 0:00:09]} Bc3 {[%emt 0:00:00]} 79. Bb6+ {[%emt 0:00:12]} Ke2 {[%emt 0:00:06]} 80. b5 {[%emt 0:00:04]} Kd3 {[%emt 0:00:02]} 81. Kf5 {[%emt 0:00:11]} Kc4 {[%emt 0:00:01]} 82. Ke6 {[%emt 0:00:11]} Bd2 {[%emt 0:00:11]} 83. Kd7 {[%emt 0:00:13]} Bc3 {[%emt 0:00:08]} 84. Bg1 {[%emt 0:00:31]} Ba5 {[%emt 0:00:01]} 85. b6 {[%emt 0:00:16]} Bxb6 {[%emt 0:00:02]} 86. Bxb6 {[%emt 0:00:07]} Kb4 {[%emt 0:00:01]} 87. Kd6 {[%emt 0:00:08]} Kc4 {[%emt 0:00:04]} 88. Ke5 {[%emt 0:00:09]} Kb4 {[%emt 0:00:03]} 89. Kd4 {[%emt 0:00:11]} Kb3 {[%emt 0:00:04]} 90. Bd5+ {[%emt 0:00:41]} Kc2 {[%emt 0:00:01]} 91. Ba5 {[%emt 0:00:14]} Kb2 {[%emt 0:00:06]} 92. Bb4 {[%emt 0:00:16]} Kc2 {[%emt 0:00:05]} 93. Bc4 {[%emt 0:00:41]} Kb2 {[%emt 0:00:06]} 94. Kd3 {[%emt 0:00:12]} Kc1 {[%emt 0:00:02]} 95. Bc3 {[%emt 0:01:30]} Kd1 {[%emt 0:00:11]} 96. Bb3+ {[%emt 0:00:48]} Kc1 {[%emt 0:00:02]} 97. Be5 {[%emt 0:00:27]} Kb1 {[%emt 0:00:09]} 98. Kc3 {[%emt 0:00:42]} Kc1 {[%emt 0:00:12]} 99. Bf4+ {[%emt 0:00:26]} Kb1 {[%emt 0:00:02]} 100. Bc4 {[%emt 0:00:35]} Ka1 {[%emt 0:00:05]} 101. Kb3 {[%emt 0:00:12]} Kb1 {[%emt 0:00:06]} 102. Bd3+ {[%emt 0:00:06]} Ka1 {[%emt 0:00:03]} 103. Be5# {[%emt 0:00:04]} 1-0

[Event "HUN-ch U8-U18 2019"]
[Site "Balatonlelle"]
[Date "2019.06.26"]
[Round "7.16"]
[White "Kovacs, Patrik Zsolt"]
[Black "Szoke, Kristof"]
[Result "1-0"]
[ECO "D40"]
[WhiteElo "1903"]
[BlackElo "1583"]
[Annotator "NA RC"]
[PlyCount "57"]
[EventDate "2019.06.21"]
[EventType "swiss"]
[EventCountry "HUN"]
[SourceTitle "playchess.com"]
[Source "ChessBase"]
[SourceQuality "1"]
[TimeControl "40/5400+30:1800+30"]

1. d4 {[%emt 0:00:01]} d5 {[%emt 0:00:11]} 2. c4 {[%emt 0:00:06]} e6 {[%emt 0:00:06]} 3. Nf3 {[%emt 0:00:07]} Nf6 {[%emt 0:00:31]} 4. Nc3 {[%emt 0:00:07]} c5 {[%emt 0:00:18]} 5. Bg5 {[%emt 0:00:21]} cxd4 {[%emt 0:02:37]} 6. Nxd4 {[%emt 0:00:52]} Nbd7 {[%emt 0:01:38]} 7. cxd5 {[%emt 0:00:43]} exd5 {[%emt 0:00:09]} 8. Nf3 {[%emt 0:00:08]} Bb4 {[%emt 0:02:08]} 9. Bxf6 {[%emt 0:08:47]} Nxf6 {[%emt 0:01:49]} 10. Qa4+ {[%emt 0:01:31]} Bd7 {[%emt 0:02:25]} 11. Qxb4 {[%emt 0:00:07]} Bc6 {[%emt 0:01:14]} 12. e3 {[%emt 0:00:44]} a5 {[%emt 0:01:03]} 13. Qd4 {[%emt 0:01:14]} O-O {[%emt 0:00:40]} 14. Be2 {[%emt 0:00:21]} Ne4 {[%emt 0:00:50]} 15. Nxe4 {[%emt 0:02:33]} dxe4 {[%emt 0:00:10]} 16. Qxd8 {[%emt 0:00:07]} Raxd8 {[%emt 0:00:10]} 17. Nd4 {[%emt 0:00:06]} Bd7 {[%emt 0:00:51]} 18. O-O {[%emt 0:00:14]} Rc8 {[%emt 0:00:32]} 19. Rac1 {[%emt 0:00:11]} f5 {[%emt 0:01:49]} 20. Bb5 {[%emt 0:00:24]} Bxb5 {[%emt 0:00:30]} 21. Nxb5 {[%emt 0:00:11]} g6 {[%emt 0:00:52]} 22. Rfd1 {[%emt 0:00:25]} Rfd8 {[%emt 0:00:20]} 23. Rxd8+ {[%emt 0:00:24]} Rxd8 {[%emt 0:00:06]} 24. Nd4 {[%emt 0:00:09]} Rd7 {[%emt 0:00:20]} 25. Kf1 {[%emt 0:00:06]} f4 {[%emt 0:00:12]} 26. Ke2 {[%emt 0:00:16]} fxe3 {[%emt 0:00:56]} 27. Kxe3 {[%emt 0:00:14]} Re7 {[%emt 0:00:16]} 28. Rc5 {[%emt 0:00:53]} Kf7 {[%emt 0:00:18]} 29. Rxa5 {[%emt 0:00:58]} 1-0